fUSD/lending_fUSD_20251225
["ID","MTS","AMOUNT","RATE_DAILY","PERIOD"]
[399718468,1766634648754,-150.0,0.00016693,2]
[399718469,1766634648764,-156.10212865,0.00016695,2]
[399718470,1766634648774,-150.0,0.00016695,2]
[399718471,1766634648784,-150.0,0.00016696,2]
[399718472,1766634648795,-150.0,0.00016698,2]
[399718473,1766634648805,-979.89023207,0.000167,2]
[399718474,1766634648815,-150.0,0.00016703,2]
[399718475,1766634648827,-150.0,0.00016703,2]
[399718476,1766634648837,-156.10212865,0.00016712,2]
[399718477,1766634648847,-150.0,0.00016713,2]
[399718478,1766634648858,-150.0,0.00016713,2]
[399718479,1766634648869,-150.0,0.00016718,2]
[399718480,1766634648879,-150.0,0.00016719,2]
[399718481,1766634648889,-200.0,0.0001672,2]
[399718482,1766634648899,-500.0,0.0001672,2]
[399718483,1766634648908,-200.0,0.0001672,2]
[399718484,1766634648919,-150.0,0.00016725,2]
[399718485,1766634648929,-150.0,0.00016727,2]
[399718486,1766634648939,-156.10212865,0.00016729,2]
[399718487,1766634648948,-150.0,0.00016732,2]
[399718488,1766634648959,-150.0,0.00016735,2]
[399718489,1766634648969,-150.0,0.0001674,2]
[399718490,1766634648979,-150.0,0.00016744,2]
[399718491,1766634648990,-150.0,0.00016744,2]
[399718492,1766634649003,-150.0,0.00016744,2]
[399718493,1766634649021,-156.10212865,0.00016746,2]
[399718494,1766634649031,-150.0,0.00016752,2]
[399718495,1766634649040,-150.0,0.00016756,2]
[399718496,1766634649050,-150.0,0.0001676,2]
[399718497,1766634649059,-150.0,0.00016763,2]
[399718498,1766634649069,-156.10212865,0.00016763,2]
[399718499,1766634649079,-150.0,0.00016766,2]
[399718500,1766634649088,-150.0,0.00016768,2]
[399718501,1766634649098,-150.0,0.00016772,2]
[399718502,1766634649107,-150.0,0.00016774,2]
[399718503,1766634649117,-156.10212865,0.0001678,2]
[399718504,1766634649126,-150.0,0.00016785,2]
[399718505,1766634649136,-150.0,0.00016785,2]
[399718506,1766634649146,-150.0,0.00016791,2]
[399718507,1766634649156,-150.0,0.00016792,2]
[399718508,1766634649166,-156.10212865,0.00016798,2]
[399718509,1766634649176,-150.0,0.00016798,2]
[399718510,1766634649186,-150.0,0.00016804,2]
[399718511,1766634649196,-150.0,0.00016807,2]
[399718512,1766634649205,-150.0,0.00016811,2]
[399718513,1766634649215,-150.0,0.00016814,2]
[399718514,1766634649225,-156.10212865,0.00016815,2]
[399718515,1766634649236,-150.0,0.00016816,2]
[399718516,1766634649247,-150.0,0.00016816,2]
[399718517,1766634649257,-150.0,0.00016825,2]
[399718518,1766634649267,-150.0,0.00016829,2]
[399718519,1766634649277,-150.0,0.0001683,2]
[399718520,1766634649287,-1021.64601503,0.0001683,2]
[399718521,1766634649296,-150.0,0.0001683,2]
[399718522,1766634649307,-156.10212865,0.00016832,2]
[399718523,1766634649316,-150.0,0.00016835,2]
[399718524,1766634649327,-150.0,0.00016841,2]
[399718525,1766634649337,-150.0,0.00016842,2]
[399718526,1766634649347,-156.10212865,0.00016849,2]
[399718527,1766634649356,-150.0,0.0001685,2]
[399718528,1766634649365,-150.0,0.00016852,2]
[399718529,1766634649389,-150.0,0.00016856,2]
[399718530,1766634649402,-150.0,0.0001686,2]
[399718531,1766634649412,-150.0,0.00016865,2]
[399718532,1766634649422,-150.0,0.00016865,2]
[399718533,1766634649432,-156.10212865,0.00016866,2]
[399718534,1766634649443,-150.0,0.00016869,2]
[399718535,1766634649453,-150.0,0.00016871,2]
[399718536,1766634649463,-150.0,0.00016873,2]
[399718537,1766634649473,-150.0,0.00016875,2]
[399718538,1766634649483,-156.10212865,0.00016883,2]
[399718539,1766634649494,-150.0,0.00016889,2]
[399718540,1766634649504,-150.0,0.00016889,2]
[399718541,1766634649514,-150.0,0.00016892,2]
[399718542,1766634649524,-2078.41,0.00016895,2]
[399718543,1766634649534,-150.0,0.00016895,2]
[399718544,1766634649544,-150.0,0.00016897,2]
[399718545,1766634649555,-150.0,0.000169,2]
[399718546,1766634649565,-160.26345252,0.000169,2]
[399718547,1766634649575,-167.0,0.000169,2]
[399718548,1766634649585,-168.44,0.000169,2]
[399718549,1766634649594,-1330.25645744,0.000169,2]
[399718550,1766634649603,-454.09263226,0.000169,2]
[399718551,1766634649613,-166.97621678,0.000169,2]
[399718552,1766634649623,-223.45632631,0.000169,2]
[399718553,1766634649632,-373.02319956,0.000169,2]
[399718554,1766634649642,-3430.6447574,0.000169,2]
[399718555,1766634649653,-156.10212865,0.00016901,2]
[399718556,1766634649663,-150.0,0.00016905,2]
[399718557,1766634649673,-150.0,0.00016908,2]
[399718558,1766634649682,-150.0,0.00016914,2]
[399718559,1766634649692,-156.10212865,0.00016918,2]
[399718560,1766634649702,-150.0,0.00016919,2]
[399718561,1766634649711,-150.0,0.00016923,2]
[399718562,1766634649721,-150.0,0.00016926,2]
[399718563,1766634649731,-150.0,0.00016928,2]
[399718564,1766634649748,-150.0,0.00016929,2]
[399718565,1766634649758,-150.0,0.0001693,2]
[399718566,1766634649768,-156.10212865,0.00016935,2]
[399718567,1766634649778,-150.0,0.00016938,2]
[399718568,1766634649787,-150.0,0.00016942,2]
[399718569,1766634649797,-150.0,0.00016947,2]
[399718570,1766634649808,-156.10212865,0.00016952,2]
[399718571,1766634649818,-201.12732165,0.00016954,2]
[399718572,1766634649829,-150.0,0.00016955,2]
[399718573,1766634649839,-150.0,0.00016956,2]
[399718574,1766634649850,-150.0,0.00016958,2]
[399718575,1766634649860,-511.55,0.00016962,2]
[399718576,1766634649870,-500.0,0.00016962,2]
[399718577,1766634649879,-500.0,0.00016962,2]
[399718578,1766634649889,-500.0,0.00016962,2]
[399718579,1766634649900,-786.09,0.00016962,2]
[399718580,1766634649910,-508.51346411,0.00016962,2]
[399718581,1766634649921,-150.0,0.00016962,2]
[399718582,1766634649931,-208527.4369724,0.00016963,2]
[399718583,1766634649942,-150.0,0.00016964,2]
[399718584,1766634649953,-150.0,0.00016967,2]
[399718585,1766634649963,-156.10212865,0.00016969,2]
[399718586,1766634649973,-500.0,0.00016973,2]
[399718587,1766634649983,-174.86770557,0.00016973,2]
[399718588,1766634649993,-164.91223401,0.00016973,2]
[399718589,1766634650006,-500.0,0.00016973,2]
[399718590,1766634650016,-500.0,0.00016973,2]
[399718591,1766634650026,-500.0,0.00016973,2]
[399718592,1766634650035,-500.0,0.00016973,2]
[399718593,1766634650047,-500.0,0.00016973,2]
[399718594,1766634650058,-500.0,0.00016973,2]
[399718595,1766634650069,-500.0,0.00016973,2]
[399718596,1766634650079,-500.59611771,0.00016973,2]
[399718597,1766634650089,-157.08021771,0.00016973,2]
[399718598,1766634650100,-500.0,0.00016973,2]
[399718599,1766634650115,-500.0,0.00016973,2]
[399718600,1766634650125,-500.0,0.00016973,2]
[399718601,1766634650135,-500.0,0.00016973,2]
[399718602,1766634650146,-609.0239433,0.00016973,2]
[399718603,1766634650156,-538.67026127,0.00016973,2]
[399718604,1766634650166,-162.14010423,0.00016973,2]
[399718605,1766634650176,-162.97042988,0.00016973,2]
[399718606,1766634650187,-500.0,0.00016973,2]
[399718607,1766634650196,-500.0,0.00016973,2]
[399718608,1766634650207,-500.0,0.00016973,2]
[399718609,1766634650218,-500.0,0.00016973,2]
[399718610,1766634650228,-500.0,0.00016973,2]
[399718611,1766634650238,-500.0,0.00016973,2]
[399718612,1766634650248,-501.82675506,0.00016973,2]
[399718613,1766634650259,-318.77837914,0.00016973,2]
[399718614,1766634650269,-500.34321322,0.00016973,2]
[399718615,1766634650279,-500.0,0.00016973,2]
[399718616,1766634650289,-500.0,0.00016973,2]
[399718617,1766634650299,-150.0,0.00016973,2]
[399718618,1766634650310,-150.0,0.00016973,2]
[399718619,1766634650320,-505.30351694,0.00016983,2]
[399718620,1766634650330,-500.0,0.00016986,2]
[399718621,1766634650341,-500.0,0.00016986,2]
[399718622,1766634650351,-500.0,0.00016986,2]
[399718623,1766634650361,-500.0,0.00016986,2]
[399718624,1766634650373,-500.0,0.00016986,2]
[399718625,1766634650383,-500.0,0.00016986,2]
[399718626,1766634650393,-579.92879926,0.00016986,2]
[399718627,1766634650403,-156.10212865,0.00016986,2]
[399718628,1766634650414,-600.0,0.00016986,2]
[399718629,1766634650425,-158.29252413,0.00016986,2]
[399718630,1766634650435,-161.55579027,0.00016986,2]
[399718631,1766634650445,-156.72302868,0.00016986,2]
[399718632,1766634650455,-165.70983319,0.00016986,2]
[399718633,1766634650465,-151.7173024,0.00016986,2]
[399718634,1766634650480,-157.5233647,0.00016986,2]
[399718635,1766634650491,-151.28892452,0.00016986,2]
[399718636,1766634650501,-150.937063,0.00016986,2]
[399718637,1766634650510,-152.25373141,0.00016986,2]
[399718638,1766634650520,-152.90599423,0.00016986,2]
[399718639,1766634650530,-150.67050673,0.00016986,2]
[399718640,1766634650541,-182.03949024,0.00016986,2]
[399718641,1766634650552,-155.88925642,0.00016986,2]
[399718642,1766634650563,-150.0,0.0001699,2]
[399718643,1766634650573,-221.16710401,0.0001699,2]
[399718644,1766634650583,-221.16710401,0.0001699,2]
[399718645,1766634650593,-151.0,0.00016997,2]
[399718646,1766634650604,-1060.87558748,0.00016999,5]
[399718647,1766634650614,-1060.87558749,0.00016999,5]
[399718648,1766634650624,-500.0,0.00016999,2]
[399718649,1766634650634,-500.0,0.00016999,2]
[399718650,1766634650644,-500.0,0.00016999,2]
[399718651,1766634650655,-500.0,0.00016999,2]
[399718652,1766634650665,-500.0,0.00016999,2]
[399718653,1766634650675,-500.0,0.00016999,2]
[399718654,1766634650685,-500.0,0.00016999,2]
[399718655,1766634650695,-500.0,0.00016999,2]
[399718656,1766634650705,-500.0,0.00016999,2]
[399718657,1766634650715,-500.0,0.00016999,2]
[399718658,1766634650725,-500.0,0.00016999,2]
[399718659,1766634650735,-395.45300292,0.00016999,2]
[399718660,1766634650745,-300.0,0.00016999,2]
[399718661,1766634650755,-666.0,0.00016999,2]
[399718662,1766634650766,-511.55,0.00016999,2]
[399718663,1766634650777,-511.55,0.00016999,2]
[399718664,1766634650787,-511.55,0.00016999,2]
[399718665,1766634650798,-511.55,0.00016999,2]
[399718666,1766634650808,-511.55,0.00016999,2]
[399718667,1766634650818,-511.55,0.00016999,2]
[399718668,1766634650830,-511.55,0.00016999,2]
[399718669,1766634650844,-511.55,0.00016999,2]
[399718670,1766634650854,-511.55,0.00016999,2]
[399718671,1766634650864,-511.55,0.00016999,2]
[399718672,1766634650874,-511.55,0.00016999,2]
[399718673,1766634650885,-511.59826677,0.00016999,2]
[399718674,1766634650896,-500.0,0.00016999,2]
[399718675,1766634650906,-500.0,0.00016999,2]
[399718676,1766634650916,-500.0,0.00016999,2]
[399718677,1766634650927,-500.0,0.00016999,2]
[399718678,1766634650936,-500.0,0.00016999,2]
[399718679,1766634650947,-500.0,0.00016999,2]
[399718680,1766634650957,-500.0,0.00016999,2]
[399718681,1766634650969,-263.78024452,0.00016999,2]
[399718682,1766634650980,-300.0,0.00016999,2]
[399718683,1766634650991,-675.6926152,0.00016999,2]
[399718684,1766634651004,-500.0,0.00016999,2]
[399718685,1766634651015,-511.43849026,0.00016999,2]
[399718686,1766634651024,-500.0,0.00016999,2]
[399718687,1766634651039,-500.0,0.00016999,2]
[399718688,1766634651050,-500.0,0.00016999,2]
[399718689,1766634651060,-500.0,0.00016999,2]
[399718690,1766634651071,-600.91153859,0.00016999,2]
[399718691,1766634651082,-517.32845872,0.00016999,2]
[399718692,1766634651092,-786.09,0.00016999,2]
[399718693,1766634651103,-786.09,0.00016999,2]
[399718694,1766634651113,-786.09,0.00016999,2]
[399718695,1766634651123,-786.09,0.00016999,2]
[399718696,1766634651133,-786.09,0.00016999,2]
[399718697,1766634651143,-786.09,0.00016999,2]
[399718698,1766634651154,-786.09,0.00016999,2]
[399718699,1766634651165,-786.09,0.00016999,2]
[399718700,1766634651175,-786.09,0.00016999,2]
[399718701,1766634651186,-786.09,0.00016999,2]
[399718702,1766634651197,-786.09,0.00016999,2]
[399718703,1766634651207,-786.09,0.00016999,2]
[399718704,1766634651218,-786.21911146,0.00016999,2]
[399718705,1766634651228,-300.0,0.00016999,2]
[399718706,1766634651239,-666.0,0.00016999,2]
[399718707,1766634651250,-5290410.53630906,0.00017,2]
[399718708,1766634651538,-588.35815958,0.00017,2]
[399718709,1766634651648,-347.053942,0.00017,2]
[399718710,1766634651664,-8242.04724838,0.00017,2]
[399718711,1766634651685,-1581037.29345031,0.00017,2]
[399718712,1766634651706,-5163741.45253323,0.00017,2]
[399718713,1766634651719,-7036.58495498,0.00017,2]
[399718714,1766634651729,-2000.0,0.00017,2]
[399718715,1766634651740,-200.0,0.00017,2]
[399718716,1766634651750,-151.0,0.00017,2]
[399718717,1766634651760,-151.0,0.00017,2]
[399718718,1766634651771,-151.0,0.00017,2]
[399718719,1766634651781,-200.0,0.00017,2]
[399718720,1766634651792,-252.591984,0.00017,2]
[399718721,1766634651801,-151.0,0.00017,2]
[399718722,1766634651811,-151.0,0.00017,2]
[399718723,1766634651822,-151.0,0.00017,2]
[399718724,1766634651832,-151.0,0.00017,2]
[399718725,1766634651844,-151.0,0.00017,2]
[399718726,1766634651854,-151.0,0.00017,2]
[399718727,1766634651864,-164.455931,0.00017,2]
[399718728,1766634651874,-164.455931,0.00017,2]
[399718729,1766634651884,-164.455931,0.00017,2]
[399718730,1766634651894,-164.455931,0.00017,2]
[399718731,1766634651904,-151.0,0.00017,2]
[399718732,1766634651914,-151.0,0.00017,2]
[399718733,1766634651924,-151.0,0.00017,2]
[399718734,1766634651934,-151.0,0.00017,2]
[399718735,1766634651944,-151.0,0.00017,2]
[399718736,1766634651954,-151.0,0.00017,2]
[399718737,1766634651964,-151.0,0.00017,2]
[399718738,1766634651975,-298.187634,0.00017,2]
[399718739,1766634651985,-151.0,0.00017,2]
[399718740,1766634651995,-151.0,0.00017,2]
[399718741,1766634652010,-151.0,0.00017,2]
[399718742,1766634652019,-151.0,0.00017,2]
[399718743,1766634652029,-151.0,0.00017,2]
[399718744,1766634652040,-151.0,0.00017,2]
[399718745,1766634652051,-151.0,0.00017,2]
[399718746,1766634652068,-151.0,0.00017,2]
[399718747,1766634652080,-156.41730905,0.00017,2]
[399718748,1766634652090,-170.78,0.00017014,2]
[399718749,1766634652101,-150.0,0.00017014,2]
[399718750,1766634652111,-171.64,0.00017014,2]
[399718751,1766634652122,-150.0,0.00017014,2]
[399718752,1766634652134,-150.0,0.00017014,2]
[399718753,1766634652144,-150.0,0.00017014,2]
[399718754,1766634652154,-150.0,0.00017014,2]
[399718755,1766634652164,-150.0,0.00017014,2]
[399718756,1766634652175,-170.78,0.00017014,2]
[399718757,1766634652186,-150.0,0.00017014,2]
[399718758,1766634652196,-150.0,0.00017014,2]
[399718759,1766634652206,-170.78,0.00017014,2]
[399718760,1766634652216,-150.0,0.00017014,2]
[399718761,1766634652226,-247.19,0.00017014,2]
[399718762,1766634652236,-170.78,0.00017014,2]
[399718763,1766634652247,-150.0,0.00017014,2]
[399718764,1766634652258,-150.0,0.00017014,2]
[399718765,1766634652268,-170.78,0.00017014,2]
[399718766,1766634652279,-170.78,0.00017014,2]
[399718767,1766634652290,-150.0,0.00017014,2]
[399718768,1766634652301,-170.78,0.00017014,2]
[399718769,1766634652312,-150.0,0.00017014,2]
[399718770,1766634652322,-170.78,0.00017014,2]
[399718771,1766634652332,-150.0,0.00017014,2]
[399718772,1766634652342,-150.0,0.00017014,2]
[399718773,1766634652352,-170.78,0.00017014,2]
[399718774,1766634652363,-170.78,0.00017014,2]
[399718775,1766634652373,-150.0,0.00017014,2]
[399718776,1766634652384,-170.78,0.00017014,2]
[399718777,1766634652394,-150.0,0.00017014,2]
[399718778,1766634652404,-150.0,0.00017014,2]
[399718779,1766634652415,-170.78,0.00017014,2]
[399718780,1766634652426,-150.0,0.00017014,2]
[399718781,1766634652436,-170.78,0.00017014,2]
[399718782,1766634652447,-170.78,0.00017014,2]
[399718783,1766634652458,-150.0,0.00017014,2]
[399718784,1766634652469,-150.0,0.00017014,2]
[399718785,1766634652480,-150.0,0.00017014,2]
[399718786,1766634652491,-150.0,0.00017014,2]
[399718787,1766634652502,-150.0,0.00017014,2]
[399718788,1766634652512,-150.0,0.00017014,2]
[399718789,1766634652523,-150.0,0.00017014,2]
[399718790,1766634652534,-167.85,0.00017014,2]
[399718791,1766634652544,-150.0,0.00017014,2]
[399718792,1766634652555,-170.7,0.00017014,2]
[399718793,1766634652566,-2078.41,0.00017168,2]
[399718794,1766634652576,-1260.81368938,0.0001717,2]
[399718795,1766634652588,-200.0,0.0001717,2]
[399718796,1766634652599,-200.0,0.0001717,2]
[399718797,1766634652610,-1252.0,0.00017205,2]
[399718798,1766634652621,-200.0,0.00017268,2]
[399718799,1766634652634,-500.0,0.00017268,2]
[399718800,1766634652646,-200.0,0.00017268,2]
[399718801,1766634652657,-200.0,0.00017342,2]
[399718802,1766634652667,-200.0,0.00017342,2]
[399718803,1766634652678,-755.58555115,0.00017421,2]
[399718804,1766634652688,-2078.47016109,0.00017442,2]
[399718805,1766634652699,-200.0,0.00017515,2]
[399718806,1766634652710,-200.0,0.00017515,2]
[399718807,1766634652720,-1000.0,0.00017521,2]
[399718808,1766634652730,-1000.0,0.00017521,2]
[399718809,1766634652741,-1000.0,0.00017521,2]
[399718810,1766634652751,-1048.71846936,0.00017521,2]
[399718811,1766634652760,-501.71978419,0.00017521,2]
[399718812,1766634652771,-1001.13263014,0.00017521,2]
[399718813,1766634652782,-662.04996986,0.00017521,2]
[399718814,1766634652792,-1000.0,0.00017521,2]
[399718815,1766634652803,-500.66105241,0.00017521,2]
[399718816,1766634652813,-1000.0,0.00017521,2]
[399718817,1766634652824,-161.90723435,0.00017521,2]
[399718818,1766634652834,-888.47775087,0.00017521,2]
[399718819,1766634652845,-1000.0,0.00017521,2]
[399718820,1766634652855,-304.96781155,0.00017521,2]
[399718821,1766634653050,-501.67810405,0.00017521,2]
[399718822,1766634653061,-501.97014703,0.00017521,2]
[399718823,1766634653070,-340.58517004,0.00017521,2]
[399718824,1766634653083,-1000.0,0.00017521,2]
[399718825,1766634653093,-502.2966499,0.00017521,2]
[399718826,1766634653104,-1000.0,0.00017521,2]
[399718827,1766634653116,-600.01,0.00017534,2]
[399718828,1766634653126,-807.83744874,0.00017534,2]
[399718829,1766634653136,-1152.0,0.0001762,2]
[399718830,1766634653147,-1152.0,0.0001762,2]
[399718831,1766634653158,-6257.3,0.0001762,2]
[399718832,1766634653168,-200.0,0.0001769,2]
[399718833,1766634653179,-200.0,0.0001769,2]
[399718834,1766634653190,-4609.0,0.00017755,2]
[399718835,1766634653201,-4609.0,0.00017773,2]
[399718836,1766634653211,-192.3262,0.00017814,2]
[399718837,1766634653222,-200.0,0.00017816,2]
[399718838,1766634653232,-500.0,0.00017816,2]
[399718839,1766634653243,-200.0,0.00017816,2]
[399718840,1766634653254,-1500.42333382,0.000179,2]
[399718841,1766634653264,-300.0,0.00017972,2]
[399718842,1766634653275,-670.82271321,0.00017972,2]
[399718843,1766634653286,-300.0,0.00017972,2]
[399718844,1766634653296,-306.76265133,0.00017972,2]
[399718845,1766634653307,-500.74813979,0.00017973,2]
[399718846,1766634653317,-500.61562744,0.00017973,2]
[399718847,1766634653327,-500.63458912,0.00017973,2]
[399718848,1766634653337,-500.0,0.00017973,2]
[399718849,1766634653347,-500.60355616,0.00017973,2]
[399718850,1766634653357,-500.78077374,0.00017973,2]
[399718851,1766634653367,-500.49282499,0.00017973,2]
[399718852,1766634653378,-500.0,0.00017973,2]
[399718853,1766634653388,-162.49487187,0.00017973,2]
[399718854,1766634653398,-500.0,0.00017973,2]
[399718855,1766634653408,-500.0,0.00017973,2]
[399718856,1766634653418,-570.68845566,0.00017973,2]
[399718857,1766634653427,-500.0,0.00017973,2]
[399718858,1766634653437,-519.21966727,0.00017973,2]
[399718859,1766634653447,-640.12294219,0.00017973,2]
[399718860,1766634653457,-500.0,0.00017973,2]
[399718861,1766634653467,-500.0,0.00017973,2]
[399718862,1766634653477,-500.0,0.00017973,2]
[399718863,1766634653488,-500.0,0.00017973,2]
[399718864,1766634653499,-500.0,0.00017973,2]
[399718865,1766634653509,-500.0,0.00017973,2]
[399718866,1766634653519,-500.0,0.00017973,2]
[399718867,1766634653529,-500.0,0.00017973,2]
[399718868,1766634653540,-500.0,0.00017973,2]
[399718869,1766634653551,-500.0,0.00017973,2]
[399718870,1766634653562,-500.52474032,0.00017973,2]
[399718871,1766634653572,-500.0,0.00017973,2]
[399718872,1766634653583,-334.84055998,0.00017973,2]
[399718873,1766634653593,-500.0,0.00017973,2]
[399718874,1766634653603,-640.3987434,0.00017973,2]
[399718875,1766634653613,-150.27801534,0.00017973,2]
[399718876,1766634653624,-160.29280988,0.00017973,2]
[399718877,1766634653635,-500.0,0.00017973,2]
[399718878,1766634653645,-500.0,0.00017973,2]
[399718879,1766634653656,-500.0,0.00017973,2]
[399718880,1766634653666,-501.24588954,0.00017973,2]
[399718881,1766634653675,-500.69275489,0.00017973,2]
[399718882,1766634653687,-500.0,0.00017973,2]
[399718883,1766634653697,-160.29886293,0.00017973,2]
[399718884,1766634653708,-156.6442189,0.00017973,2]
[399718885,1766634653718,-500.0,0.00017973,2]
[399718886,1766634653728,-160.24858411,0.00017973,2]
[399718887,1766634653738,-500.0,0.00017973,2]
[399718888,1766634653748,-556.36134063,0.00017973,2]
[399718889,1766634653759,-500.0,0.00017973,2]
[399718890,1766634653769,-160.27085818,0.00017973,2]
[399718891,1766634653779,-500.0,0.00017973,2]
[399718892,1766634653790,-500.0,0.00017973,2]
[399718893,1766634653800,-500.31412662,0.00017973,2]
[399718894,1766634653811,-500.0,0.00017973,2]
[399718895,1766634653829,-160.30090305,0.00017973,2]
[399718896,1766634653839,-160.30019864,0.00017973,2]
[399718897,1766634653849,-500.0,0.00017973,2]
[399718898,1766634653860,-500.0,0.00017973,2]
[399718899,1766634653870,-500.0,0.00017973,2]
[399718900,1766634653880,-344.89318121,0.00017973,2]
[399718901,1766634653890,-220.42892992,0.00017973,2]
[399718902,1766634653900,-500.0,0.00017973,2]
[399718903,1766634653910,-207.62162808,0.00017973,2]
[399718904,1766634653920,-500.38340673,0.00017973,2]
[399718905,1766634653930,-500.0,0.00017973,2]
[399718906,1766634653940,-468.88622477,0.00017973,2]
[399718907,1766634653950,-500.0,0.00017973,2]
[399718908,1766634653960,-167.03604836,0.00017973,2]
[399718909,1766634653971,-500.88098463,0.00017973,2]
[399718910,1766634653982,-500.0,0.00017973,2]
[399718911,1766634653992,-516.73866127,0.00017973,2]
[399718912,1766634654004,-159.54833604,0.00017973,2]
[399718913,1766634654015,-500.0,0.00017973,2]
[399718914,1766634654026,-161.19619753,0.00017973,2]
[399718915,1766634654037,-523.37707117,0.00017973,2]
[399718916,1766634654049,-509.50570613,0.00017973,2]
[399718917,1766634654062,-500.0,0.00017973,2]
[399718918,1766634654076,-160.26415895,0.00017973,2]
[399718919,1766634654088,-530.40868375,0.00017973,2]
[399718920,1766634654099,-500.0,0.00017973,2]
[399718921,1766634654111,-500.0,0.00017973,2]
[399718922,1766634654122,-160.26989526,0.00017973,2]
[399718923,1766634654133,-150.03278669,0.00017973,2]
[399718924,1766634654143,-500.0,0.00017973,2]
[399718925,1766634654152,-500.0,0.00017973,2]
[399718926,1766634654162,-500.0,0.00017973,2]
[399718927,1766634654173,-500.0,0.00017973,2]
[399718928,1766634654184,-500.0,0.00017973,2]
[399718929,1766634654196,-500.0,0.00017973,2]
[399718930,1766634654207,-500.0,0.00017973,2]
[399718931,1766634654218,-395.60896154,0.00017973,2]
[399718932,1766634654228,-500.0,0.00017973,2]
[399718933,1766634654239,-500.0,0.00017973,2]
[399718934,1766634654251,-506.56244638,0.00017973,2]
[399718935,1766634654263,-300.0,0.00017997,2]
[399718936,1766634654273,-300.0,0.00017997,2]
[399718937,1766634654284,-148012.07947921,0.00017998,2]
[399718938,1766634654296,-300.0,0.00017999,2]
[399718939,1766634654306,-300.0,0.00017999,2]
[399718940,1766634654317,-138329.80270693,0.00018,2]
[399718941,1766634656131,-1.7e-07,0.0001474,2]
[399718942,1766634656143,-4065.58012154,0.0001474,2]
[399718943,1766634656156,-54965.45679627,0.0001474,2]
[399718944,1766634656167,-252419.84777964,0.00018,2]
[399718945,1766634656177,-504.42223695,0.00018068,2]
[399718946,1766634656187,-496.47001019,0.00018068,2]
[399718947,1766634656196,-1500.0,0.00018068,2]
[399718948,1766634656207,-1085.51919397,0.00018068,2]
[399718949,1766634656218,-1500.0,0.00018068,2]
[399718950,1766634656229,-1000.0,0.00018192,2]
[399718951,1766634656239,-200.0,0.00018364,2]
[399718952,1766634656249,-500.0,0.00018364,2]
[399718953,1766634656258,-200.0,0.00018364,2]
[399718954,1766634656268,-1600.0,0.00018466,2]
[399718955,1766634656278,-607.95145259,0.00018521,2]
[399718956,1766634656288,-500.0,0.00018521,2]
[399718957,1766634656298,-500.80456344,0.00018521,2]
[399718958,1766634656310,-500.76713087,0.00018521,2]
[399718959,1766634656321,-188.30553385,0.00018521,2]
[399718960,1766634656331,-500.0,0.00018521,2]
[399718961,1766634656341,-500.43249558,0.00018521,2]
[399718962,1766634656351,-500.88915437,0.00018521,2]
[399718963,1766634656361,-500.79213904,0.00018521,2]
[399718964,1766634656370,-500.86507017,0.00018521,2]
[399718965,1766634656380,-474.6859126,0.00018521,2]
[399718966,1766634656390,-500.77480786,0.00018521,2]
[399718967,1766634656400,-500.0,0.00018521,2]